fUST/lending_fUST_20250224
["ID","MTS","AMOUNT","RATE_DAILY","PERIOD"]
[354316645,1740408639152,-500.0,0.0001378,2]
[354316647,1740408639162,-500.0,0.0001378,2]
[354316649,1740408639172,-656.7,0.0001378,2]
[354316651,1740408639182,-500.0,0.0001378,2]
[354316653,1740408639191,-500.0,0.0001378,2]
[354316655,1740408639202,-556.41,0.0001378,2]
[354316657,1740408639212,-500.0,0.00013863,2]
[354316659,1740408639225,-500.0,0.00013863,2]
[354316661,1740408639235,-500.0,0.00013863,2]
[354316663,1740408639245,-500.0,0.00013863,2]
[354316665,1740408639255,-553.15,0.00013863,2]
[354316667,1740408639264,-500.0,0.00013863,2]
[354316669,1740408639273,-500.0,0.00013863,2]
[354316671,1740408639283,-1495.95,0.00013863,2]
[354316673,1740408639292,-500.0,0.00013863,2]
[354316675,1740408639302,-500.0,0.00013863,2]
[354316677,1740408639312,-500.0,0.00013863,2]
[354316679,1740408639322,-1753.22,0.00013863,2]
[354316681,1740408639332,-578.76,0.00013863,2]
[354316683,1740408639343,-557.38,0.00013863,2]
[354316686,1740408639352,-4055.58,0.00013863,2]
[354316688,1740408639362,-7410.82,0.00013863,2]
[354316690,1740408639373,-769.43,0.00013863,2]
[354316692,1740408639384,-500.0,0.00013863,2]
[354316694,1740408639394,-500.0,0.00013863,2]
[354316696,1740408639404,-500.0,0.00013863,2]
[354316698,1740408639414,-500.0,0.00013863,2]
[354316700,1740408639425,-500.0,0.00013863,2]
[354316702,1740408639435,-1278.99,0.00013863,2]
[354316704,1740408639445,-1576.07,0.00013863,2]
[354316706,1740408639455,-2356.81,0.00013863,2]
[354316708,1740408639465,-16841.0,0.00013863,2]
[354316710,1740408639475,-500.0,0.00013863,2]
[354316712,1740408639484,-606.35,0.00013863,2]
[354316714,1740408639494,-1403.62,0.00013863,2]
[354316716,1740408639504,-608.38203747,0.00013863,2]
[354316718,1740408639513,-500.0,0.00013863,2]
[354316721,1740408639523,-500.0,0.00013863,2]
[354316723,1740408639533,-656.7,0.00013863,2]
[354316724,1740408639542,-500.0,0.00013863,2]
[354316727,1740408639552,-500.0,0.00013863,2]
[354316730,1740408639561,-556.41,0.00013863,2]
[354316733,1740408639571,-500.0,0.00013899,2]
[354316736,1740408639580,-227.20795082,0.00013945,2]
[354316738,1740408639590,-500.0,0.00013945,2]
[354316741,1740408639599,-500.0,0.00013945,2]
[354316743,1740408639609,-500.0,0.00013945,2]
[354316745,1740408639618,-553.15,0.00013945,2]
[354316747,1740408639628,-500.0,0.00013945,2]
[354316749,1740408639638,-500.0,0.00013945,2]
[354316751,1740408639647,-500.0,0.00013945,2]
[354316753,1740408639657,-1495.95,0.00013945,2]
[354316755,1740408639666,-500.0,0.00013945,2]
[354316757,1740408639675,-500.0,0.00013945,2]
[354316759,1740408639684,-1753.22,0.00013945,2]
[354316761,1740408639694,-578.76,0.00013945,2]
[354316763,1740408639703,-557.38,0.00013945,2]
[354316765,1740408639713,-4055.58,0.00013945,2]
[354316767,1740408639722,-6129.78110822,0.00013945,2]
[354316769,1740408639735,-1281.03889178,0.00013945,2]
[354316771,1740408639745,-769.43,0.00013945,2]
[354316773,1740408639754,-500.0,0.00013945,2]
[354316775,1740408639764,-500.0,0.00013945,2]
[354316778,1740408639773,-500.0,0.00013945,2]
[354316780,1740408639785,-500.0,0.00013945,2]
[354316782,1740408639795,-500.0,0.00013945,2]
[354316784,1740408639805,-1278.99,0.00013945,2]
[354316786,1740408639816,-1576.07,0.00013945,2]
[354316788,1740408639827,-2356.81,0.00013945,2]
[354316790,1740408639837,-16841.0,0.00013945,2]
[354316792,1740408639847,-500.0,0.00013945,2]
[354316794,1740408639857,-606.35,0.00013945,2]
[354316797,1740408639870,-1403.62,0.00013945,2]
[354316799,1740408639880,-559.35237245,0.00013945,2]
[354316816,1740408640036,-500.0,0.00013945,2]
[354316819,1740408640081,-656.7,0.00013945,2]
[354316821,1740408640092,-500.0,0.00013945,2]
[354316823,1740408640104,-556.41,0.00013945,2]
[354316825,1740408640114,-500.0,0.00013981,2]
[354316827,1740408640124,-500.0,0.00013999,2]
[354316829,1740408640134,-500.0,0.00013999,2]
[354316831,1740408640146,-321.90476924,0.00013999,2]
[354316833,1740408640155,-1659.16,0.00013999,2]
[354316835,1740408640165,-500.0,0.00013999,2]
[354316837,1740408640175,-578.47963142,0.00013999,2]
[354316839,1740408640184,-22442.41949278,0.00014,15]
[354316841,1740408640198,-19162.25143469,0.00014,15]
[354317003,1740408641820,-27884.608856,0.00014,15]
[354317013,1740408641908,-4118.09133432,0.00014,15]
[354317016,1740408641919,-268.735003,0.00014,15]
[354317018,1740408641930,-7951.60775261,0.00014,15]
[354317020,1740408641942,-3681.66136956,0.00014,15]
[354317022,1740408641953,-1012.6,0.00014,15]
[354317025,1740408641964,-1601.06569073,0.00014,15]
[354317071,1740408642487,-127534.971829,0.00014,15]
[354317073,1740408642499,-18613.54959375,0.00014,15]
[354317075,1740408642510,-1333.99999851,0.00014,15]
[354317078,1740408642522,-105500.0,0.00014,15]
[354317081,1740408642533,-1968.95740494,0.00014,15]
[354317085,1740408642556,-8561.039692,0.00014,15]
[354317091,1740408642595,-1041.44652036,0.00014,15]
[354317100,1740408642665,-13901.86069,0.00014,15]
[354317399,1740408644092,-17153.080022,0.00014,15]
[354317402,1740408644106,-695672.16902757,0.00014,15]
[354317405,1740408644119,-495.4497,0.00014,15]
[354317407,1740408644132,-558.22703221,0.00014,15]
[354317410,1740408644148,-28874.56186836,0.00014,15]
[354317413,1740408644162,-12347.84452741,0.00014,15]
[354317415,1740408644172,-700.0,0.00014,2]
[354317418,1740408644181,-8093.35856995,0.00014,15]
[354317420,1740408644191,-508.82,0.00014027,2]
[354317423,1740408644201,-281.78370059,0.00014027,2]
[354317426,1740408644211,-500.0,0.00014027,2]
[354317428,1740408644222,-500.0,0.00014027,2]
[354317431,1740408644232,-500.0,0.00014027,2]
[354317433,1740408644242,-500.0,0.00014027,2]
[354317436,1740408644251,-500.0,0.00014027,2]
[354317438,1740408644278,-500.0,0.00014027,2]
[354317440,1740408644289,-647.81,0.00014027,2]
[354317442,1740408644299,-500.0,0.00014027,2]
[354317445,1740408644309,-500.0,0.00014027,2]
[354317448,1740408644321,-668.37,0.00014027,2]
[354317449,1740408644340,-1062.71,0.00014027,2]
[354317452,1740408644350,-500.0,0.00014027,2]
[354317454,1740408644360,-500.0,0.00014027,2]
[354317457,1740408644370,-500.0,0.00014027,2]
[354317460,1740408644379,-500.1,0.00014027,2]
[354317482,1740408644507,-560.56,0.00014027,2]
[354317485,1740408644518,-586.94,0.00014027,2]
[354317487,1740408644528,-500.0,0.00014027,2]
[354317491,1740408644538,-500.0,0.00014027,2]
[354317493,1740408644547,-500.0,0.00014027,2]
[354317495,1740408644556,-611.42,0.00014027,2]
[354317498,1740408644565,-150.26,0.00014027,2]
[354317500,1740408644575,-7394.56,0.00014027,2]
[354317503,1740408644584,-847.28,0.00014027,2]
[354317505,1740408644594,-749.76,0.00014027,2]
[354317508,1740408644603,-2119.9,0.00014027,2]
[354317511,1740408644615,-507.82,0.00014027,2]
[354317513,1740408644627,-500.0,0.00014027,2]
[354317516,1740408644637,-477.00552568,0.00014027,2]
[354317520,1740408644649,-761.37,0.00014027,2]
[354317521,1740408644658,-500.0,0.00014027,2]
[354317524,1740408644667,-500.0,0.00014027,2]
[354317527,1740408644676,-500.0,0.00014027,2]
[354317529,1740408644685,-553.15,0.00014027,2]
[354317532,1740408644695,-500.0,0.00014027,2]
[354317535,1740408644705,-500.0,0.00014027,2]
[354317537,1740408644716,-1495.95,0.00014027,2]
[354317540,1740408644725,-500.0,0.00014027,2]
[354317542,1740408644734,-500.0,0.00014027,2]
[354317545,1740408644744,-1753.22,0.00014027,2]
[354317548,1740408644753,-578.76,0.00014027,2]
[354317550,1740408644780,-557.38,0.00014027,2]
[354317553,1740408644790,-634.0,0.00014027,2]
[354317555,1740408644800,-4055.58,0.00014027,2]
[354317556,1740408644810,-931.45436569,0.00014027,2]
[354317560,1740408644823,-1020.99,0.00014027,2]
[354317563,1740408644835,-903.279996,0.00014027,2]
[354317566,1740408644847,-4555.09563831,0.00014027,2]
[354317568,1740408644857,-500.0,0.00014027,2]
[354317571,1740408644868,-150.26,0.00014027,2]
[354317573,1740408644877,-150.26,0.00014027,2]
[354317576,1740408644887,-769.43,0.00014027,2]
[354317579,1740408644896,-500.0,0.00014027,2]
[354317581,1740408644907,-500.0,0.00014027,2]
[354317584,1740408644917,-500.0,0.00014027,2]
[354317587,1740408644927,-500.0,0.00014027,2]
[354317589,1740408644936,-1278.99,0.00014027,2]
[354317592,1740408644946,-1576.07,0.00014027,2]
[354317594,1740408644955,-2356.81,0.00014027,2]
[354317597,1740408644964,-921.03436168,0.00014027,2]
[354317782,1740408646145,-14991.41794208,0.00014027,2]
[354317797,1740408646228,-928.54769624,0.00014027,2]
[354317800,1740408646239,-500.0,0.00014027,2]
[354317804,1740408646253,-606.35,0.00014027,2]
[354317807,1740408646264,-1403.62,0.00014027,2]
[354317810,1740408646284,-500.0,0.00014027,2]
[354317813,1740408646294,-321.06084013,0.00014027,2]
[354317819,1740408646322,-335.63915987,0.00014027,2]
[354317822,1740408646332,-500.0,0.00014027,2]
[354317824,1740408646342,-556.41,0.00014027,2]
[354317826,1740408646353,-854.11588088,0.00014038,2]
[354317828,1740408646363,-109.02785125,0.00014064,2]
[354317830,1740408646375,-390.97214875,0.00014064,2]
[354317832,1740408646386,-1659.16,0.00014081,2]
[354317834,1740408646397,-500.0,0.00014081,2]
[354317836,1740408646408,-306.0,0.000141,2]
[354317838,1740408646418,-355.3763574,0.000141,2]
[354317840,1740408646429,-557.4308118,0.000141,2]
[354317842,1740408646440,-308.5906258,0.000141,2]
[354317844,1740408646451,-306.0,0.000141,2]
[354317846,1740408646461,-508.82,0.00014109,2]
[354317848,1740408646471,-500.0,0.00014109,2]
[354317850,1740408646482,-234.1439724,0.00014109,2]
[354317852,1740408646492,-500.0,0.00014109,2]
[354317854,1740408646503,-591.68,0.00014109,2]
[354317856,1740408646512,-500.0,0.00014109,2]
[354317858,1740408646529,-647.81,0.00014109,2]
[354317860,1740408646539,-500.0,0.00014109,2]
[354317862,1740408646549,-500.0,0.00014109,2]
[354317864,1740408646562,-668.37,0.00014109,2]
[354317866,1740408646574,-1062.71,0.00014109,2]
[354317868,1740408646583,-500.0,0.00014109,2]
[354317870,1740408646593,-500.0,0.00014109,2]
[354317872,1740408646602,-500.0,0.00014109,2]
[354317874,1740408646611,-500.1,0.00014109,2]
[354317876,1740408646621,-560.56,0.00014109,2]
[354317878,1740408646630,-586.94,0.00014109,2]
[354317881,1740408646640,-500.0,0.00014109,2]
[354317882,1740408646651,-500.0,0.00014109,2]
[354317884,1740408646661,-500.0,0.00014109,2]
[354317886,1740408646671,-611.42,0.00014109,2]
[354317888,1740408646681,-7394.56,0.00014109,2]
[354317890,1740408646691,-847.28,0.00014109,2]
[354317892,1740408646702,-749.76,0.00014109,2]
[354317894,1740408646712,-2119.9,0.00014109,2]
[354317896,1740408646722,-507.82,0.00014109,2]
[354317899,1740408646732,-500.0,0.00014109,2]
[354317901,1740408646742,-761.37,0.00014109,2]
[354317903,1740408646752,-500.0,0.00014109,2]
[354317905,1740408646761,-500.0,0.00014109,2]
[354317906,1740408646775,-500.0,0.00014109,2]
[354317908,1740408646785,-375.13254653,0.00014109,2]
[354317911,1740408646798,-178.01745347,0.00014109,2]
[354317913,1740408646808,-500.0,0.00014109,2]
[354317915,1740408646817,-500.0,0.00014109,2]
[354317917,1740408646826,-1495.95,0.00014109,2]
[354317919,1740408646836,-500.0,0.00014109,2]
[354317921,1740408646846,-211.50808001,0.00014109,2]
[354317923,1740408646856,-1753.22,0.00014109,2]
[354317925,1740408646866,-578.76,0.00014109,2]
[354317927,1740408646876,-557.38,0.00014109,2]
[354317929,1740408646886,-4055.58,0.00014109,2]
[354317931,1740408646897,-7410.82,0.00014109,2]
[354317933,1740408646908,-769.43,0.00014109,2]
[354317935,1740408646918,-500.0,0.00014109,2]
[354317937,1740408646928,-500.0,0.00014109,2]
[354317939,1740408646938,-500.0,0.00014109,2]
[354317941,1740408646947,-500.0,0.00014109,2]
[354317943,1740408646957,-1278.99,0.00014109,2]
[354317945,1740408646966,-1576.07,0.00014109,2]
[354317947,1740408646975,-2356.81,0.00014109,2]
[354317949,1740408646984,-16841.0,0.00014109,2]
[354317951,1740408646993,-500.0,0.00014109,2]
[354317953,1740408647002,-606.35,0.00014109,2]
[354317955,1740408647012,-1403.62,0.00014109,2]
[354317957,1740408647023,-500.0,0.00014109,2]
[354317959,1740408647032,-656.7,0.00014109,2]
[354317961,1740408647041,-500.0,0.00014109,2]
[354317963,1740408647050,-556.41,0.00014109,2]
[354317964,1740408647059,-854.11588088,0.00014138,2]
[354317966,1740408647069,-500.0,0.00014146,2]
[354317968,1740408647078,-1659.16,0.00014164,2]
[354317970,1740408647088,-500.0,0.00014164,2]
[354317973,1740408647098,-500.0,0.00014173,2]
[354317974,1740408647110,-500.0,0.00014173,2]
[354317976,1740408647119,-500.0,0.00014173,2]
[354317978,1740408647128,-500.0,0.00014173,2]
[354317980,1740408647138,-508.82,0.00014191,2]
[354317981,1740408647148,-500.0,0.00014191,2]
[354317982,1740408647160,-500.0,0.00014191,2]
[354317983,1740408647170,-500.0,0.00014191,2]
[354317984,1740408647179,-647.81,0.00014191,2]
[354317985,1740408647189,-500.0,0.00014191,2]
[354317986,1740408647199,-593.48553908,0.00014191,2]
[354317987,1740408647209,-668.37,0.00014191,2]
[354317988,1740408647218,-1062.71,0.00014191,2]
[354317989,1740408647228,-500.0,0.00014191,2]
[354317991,1740408647238,-639.0662537,0.00014191,2]
[354317993,1740408647247,-500.0,0.00014191,2]
[354317995,1740408647257,-500.1,0.00014191,2]
[354317997,1740408647266,-560.56,0.00014191,2]
[354317999,1740408647277,-586.94,0.00014191,2]
[354318001,1740408647287,-500.0,0.00014191,2]
[354318003,1740408647296,-500.0,0.00014191,2]
[354318005,1740408647305,-500.0,0.00014191,2]
[354318007,1740408647315,-611.42,0.00014191,2]
[354318009,1740408647324,-7394.56,0.00014191,2]
[354318011,1740408647334,-847.28,0.00014191,2]
[354318013,1740408647343,-749.76,0.00014191,2]
[354318015,1740408647353,-2119.9,0.00014191,2]
[354318017,1740408647364,-507.82,0.00014191,2]
[354318019,1740408647374,-545.95412,0.00014191,2]
[354318021,1740408647384,-761.37,0.00014191,2]
[354318023,1740408647394,-500.0,0.00014191,2]
[354318025,1740408647403,-500.0,0.00014191,2]
[354318027,1740408647413,-500.0,0.00014191,2]
[354318029,1740408647423,-553.15,0.00014191,2]
[354318031,1740408647433,-500.0,0.00014191,2]
[354318033,1740408647443,-500.0,0.00014191,2]
[354318035,1740408647452,-1495.95,0.00014191,2]
[354318037,1740408647462,-500.0,0.00014191,2]
[354318039,1740408647472,-1753.22,0.00014191,2]
[354318041,1740408647483,-578.76,0.00014191,2]
[354318043,1740408647492,-557.38,0.00014191,2]
[354318045,1740408647501,-4055.58,0.00014191,2]
[354318047,1740408647510,-7410.82,0.00014191,2]
[354318049,1740408647522,-769.43,0.00014191,2]
[354318051,1740408647532,-500.0,0.00014191,2]
[354318053,1740408647542,-500.0,0.00014191,2]
[354318055,1740408647552,-500.0,0.00014191,2]
[354318057,1740408647563,-268.19497176,0.00014191,2]
[354318059,1740408647573,-1278.99,0.00014191,2]
[354318061,1740408647584,-1576.07,0.00014191,2]
[354318063,1740408647594,-2356.81,0.00014191,2]
[354318065,1740408647604,-16841.0,0.00014191,2]
[354318067,1740408647613,-500.0,0.00014191,2]
[354318069,1740408647622,-606.35,0.00014191,2]
[354318071,1740408647631,-1403.62,0.00014191,2]
[354318073,1740408647640,-500.0,0.00014191,2]
[354318075,1740408647650,-656.7,0.00014191,2]
[354318077,1740408647659,-500.0,0.00014191,2]
[354318079,1740408647668,-556.41,0.00014191,2]
[354318081,1740408647678,-160.0,0.0001421,3]
[354318083,1740408647687,-317.83310909,0.0001421,5]
[354318085,1740408647696,-500.0,0.00014228,2]
[354318087,1740408647705,-854.11588088,0.00014238,2]
[354318089,1740408647715,-1659.16,0.00014246,2]
[354318091,1740408647724,-500.0,0.00014246,2]
[354318093,1740408647733,-1008.408753,0.00014247,2]
[354318095,1740408647742,-508.82,0.00014273,2]
[354318097,1740408647751,-500.0,0.00014273,2]
[354318099,1740408647760,-500.0,0.00014273,2]
[354318101,1740408647769,-151.0,0.00014273,2]
[354318102,1740408647778,-647.81,0.00014273,2]
[354318104,1740408647788,-500.0,0.00014273,2]
[354318106,1740408647796,-668.37,0.00014273,2]
[354318108,1740408647805,-1062.71,0.00014273,2]
[354318110,1740408647815,-500.0,0.00014273,2]
[354318112,1740408647824,-151.0,0.00014273,2]
[354318114,1740408647834,-500.0,0.00014273,2]
[354318116,1740408647844,-500.1,0.00014273,2]
[354318118,1740408647853,-151.0,0.00014273,2]
[354318120,1740408647863,-560.56,0.00014273,2]
[354318122,1740408647873,-151.0,0.00014273,2]
[354318124,1740408647884,-586.94,0.00014273,2]
[354318126,1740408647894,-500.0,0.00014273,2]
[354318128,1740408647905,-500.0,0.00014273,2]
[354318130,1740408647915,-151.0,0.00014273,2]
[354318132,1740408647925,-500.0,0.00014273,2]
[354318134,1740408647934,-151.0,0.00014273,2]
[354318136,1740408647943,-256.930242,0.00014273,2]
[354318138,1740408647953,-611.42,0.00014273,2]
[354318140,1740408647963,-151.0,0.00014273,2]
[354318142,1740408647972,-7394.56,0.00014273,2]
[354318144,1740408647983,-847.28,0.00014273,2]
[354318146,1740408647993,-749.76,0.00014273,2]
[354318148,1740408648003,-2119.9,0.00014273,2]
[354318150,1740408648014,-507.82,0.00014273,2]
[354318152,1740408648032,-761.37,0.00014273,2]
[354318154,1740408648043,-500.0,0.00014273,2]
[354318156,1740408648055,-468.10351801,0.00014273,2]
[354318158,1740408648067,-500.0,0.00014273,2]
[354318160,1740408648078,-553.15,0.00014273,2]
[354318162,1740408648090,-500.0,0.00014273,2]
[354318164,1740408648101,-500.0,0.00014273,2]
[354318166,1740408648117,-1495.95,0.00014273,2]
[354318168,1740408648128,-500.0,0.00014273,2]
[354318170,1740408648139,-1753.22,0.00014273,2]
[354318172,1740408648151,-578.76,0.00014273,2]
[354318174,1740408648163,-557.38,0.00014273,2]
[354318176,1740408648173,-4055.58,0.00014273,2]
[354318178,1740408648184,-7410.82,0.00014273,2]
[354318180,1740408648195,-769.43,0.00014273,2]
[354318182,1740408648206,-500.0,0.00014273,2]
[354318183,1740408648217,-500.0,0.00014273,2]
[354318185,1740408648228,-500.0,0.00014273,2]
[354318187,1740408648239,-1278.99,0.00014273,2]
[354318189,1740408648251,-1576.07,0.00014273,2]
[354318191,1740408648262,-2356.81,0.00014273,2]
[354318193,1740408648277,-16841.0,0.00014273,2]
[354318195,1740408648289,-500.0,0.00014273,2]
[354318197,1740408648304,-606.35,0.00014273,2]
[354318200,1740408648316,-1403.62,0.00014273,2]
[354318202,1740408648327,-500.0,0.00014273,2]
[354318204,1740408648338,-656.7,0.00014273,2]
[354318206,1740408648349,-500.0,0.00014273,2]
[354318208,1740408648360,-556.41,0.00014273,2]
[354318210,1740408648371,-1474.65,0.000143,2]
[354318212,1740408648381,-600.74171453,0.00014301,2]
[354318214,1740408648391,-150.26,0.00014301,2]
[354318216,1740408648402,-634.0,0.00014301,2]
[354318218,1740408648412,-500.0,0.00014301,2]
[354318219,1740408648422,-150.26,0.00014301,2]
[354318221,1740408648432,-500.0,0.0001431,2]
[354318223,1740408648442,-1659.16,0.00014328,2]
[354318226,1740408648453,-500.0,0.00014328,2]
[354318227,1740408648463,-3198.99193524,0.00014338,2]
[354318230,1740408648474,-854.11588088,0.00014338,2]
[354318231,1740408648484,-508.82,0.00014356,2]
[354318234,1740408648495,-500.0,0.00014356,2]
[354318236,1740408648506,-500.0,0.00014356,2]
[354318238,1740408648516,-647.81,0.00014356,2]
[354318240,1740408648530,-598.96504046,0.00014356,2]
[354318242,1740408648542,-668.37,0.00014356,2]
[354318244,1740408648552,-1062.71,0.00014356,2]
[354318246,1740408648563,-500.0,0.00014356,2]
[354318248,1740408648575,-500.0,0.00014356,2]
[354318250,1740408648585,-500.1,0.00014356,2]
[354318252,1740408648596,-560.56,0.00014356,2]
[354318254,1740408648607,-586.94,0.00014356,2]
[354318256,1740408648617,-500.0,0.00014356,2]
[354318258,1740408648627,-500.0,0.00014356,2]
[354318260,1740408648637,-500.0,0.00014356,2]
[354318262,1740408648649,-611.42,0.00014356,2]
[354318264,1740408648658,-7394.56,0.00014356,2]
[354318266,1740408648668,-847.28,0.00014356,2]
[354318268,1740408648678,-749.76,0.00014356,2]
[354318270,1740408648687,-2119.9,0.00014356,2]
[354318272,1740408648697,-507.82,0.00014356,2]
[354318274,1740408648707,-761.37,0.00014356,2]
[354318276,1740408648717,-500.0,0.00014356,2]
[354318278,1740408648726,-500.0,0.00014356,2]
[354318280,1740408648737,-553.15,0.00014356,2]
[354318282,1740408648747,-500.0,0.00014356,2]
[354318284,1740408648756,-500.0,0.00014356,2]
[354318286,1740408648766,-1495.95,0.00014356,2]
[354318288,1740408648779,-500.0,0.00014356,2]
[354318290,1740408648789,-1753.22,0.00014356,2]
[354318292,1740408648799,-578.76,0.00014356,2]
[354318294,1740408648808,-557.38,0.00014356,2]
[354318296,1740408648818,-4055.58,0.00014356,2]
[354318298,1740408648828,-7410.82,0.00014356,2]
[354318300,1740408648838,-500.0,0.00014356,2]
[354318302,1740408648847,-769.43,0.00014356,2]
[354318304,1740408648857,-500.0,0.00014356,2]
[354318306,1740408648867,-500.0,0.00014356,2]
[354318308,1740408648876,-1278.99,0.00014356,2]
[354318310,1740408648886,-1576.07,0.00014356,2]
[354318312,1740408648896,-2356.81,0.00014356,2]
[354318314,1740408648906,-16841.0,0.00014356,2]
[354318316,1740408648916,-500.0,0.00014356,2]
[354318317,1740408648926,-606.35,0.00014356,2]
[354318319,1740408648936,-1403.62,0.00014356,2]
[354318321,1740408648946,-500.0,0.00014356,2]
[354318322,1740408648955,-656.7,0.00014356,2]
[354318323,1740408648965,-500.0,0.00014356,2]
[354318324,1740408648974,-556.41,0.00014356,2]
[354318325,1740408648983,-500.0,0.00014392,2]
[354318326,1740408648995,-1659.16,0.0001441,2]
[354318327,1740408649005,-500.0,0.0001441,2]
[354318328,1740408649014,-40017.40369732,0.0001443,2]
[354318329,1740408649025,-508.82,0.00014438,2]
[354318330,1740408649036,-500.0,0.00014438,2]
[354318332,1740408649047,-500.0,0.00014438,2]
[354318334,1740408649057,-647.81,0.00014438,2]
[354318336,1740408649067,-668.37,0.00014438,2]
[354318338,1740408649077,-1062.71,0.00014438,2]
[354318340,1740408649087,-500.0,0.00014438,2]
[354318342,1740408649097,-500.0,0.00014438,2]
[354318343,1740408649109,-500.1,0.00014438,2]
[354318345,1740408649121,-560.56,0.00014438,2]
[354318347,1740408649132,-586.94,0.00014438,2]
[354318349,1740408649142,-549.97622401,0.00014438,2]
[354318351,1740408649155,-500.0,0.00014438,2]
[354318353,1740408649167,-500.30905902,0.00014438,2]
[354318355,1740408649178,-611.42,0.00014438,2]
[354318357,1740408649189,-7394.56,0.00014438,2]
[354318359,1740408649203,-847.28,0.00014438,2]
[354318361,1740408649213,-749.76,0.00014438,2]
[354318363,1740408649226,-2119.9,0.00014438,2]
[354318365,1740408649237,-507.82,0.00014438,2]
[354318367,1740408649247,-761.37,0.00014438,2]
[354318369,1740408649258,-500.0,0.00014438,2]
[354318371,1740408649271,-349.58265711,0.00014438,2]
[354318373,1740408649280,-553.15,0.00014438,2]
[354318375,1740408649290,-500.0,0.00014438,2]
[354318377,1740408649299,-500.0,0.00014438,2]
[354318379,1740408649310,-1495.95,0.00014438,2]
[354318381,1740408649320,-500.0,0.00014438,2]
[354318383,1740408649330,-1753.22,0.00014438,2]
[354318385,1740408649340,-578.76,0.00014438,2]
[354318387,1740408649350,-557.38,0.00014438,2]
[354318389,1740408649361,-4055.58,0.00014438,2]
[354318391,1740408649371,-7410.82,0.00014438,2]
[354318393,1740408649382,-500.0,0.00014438,2]
[354318395,1740408649393,-769.43,0.00014438,2]
[354318397,1740408649403,-500.0,0.00014438,2]
[354318399,1740408649413,-500.0,0.00014438,2]
[354318401,1740408649423,-1278.99,0.00014438,2]
[354318403,1740408649433,-1576.07,0.00014438,2]
[354318405,1740408649443,-2356.81,0.00014438,2]
[354318407,1740408649453,-16841.0,0.00014438,2]
[354318409,1740408649464,-500.0,0.00014438,2]
[354318411,1740408649474,-606.35,0.00014438,2]
[354318413,1740408649484,-1403.62,0.00014438,2]
[354318428,1740408649620,-500.0,0.00014438,2]
[354318430,1740408649630,-656.7,0.00014438,2]
[354318432,1740408649641,-500.0,0.00014438,2]
[354318434,1740408649651,-556.41,0.00014438,2]
[354318436,1740408649662,-854.11588088,0.00014438,2]
[354318438,1740408649672,-500.0,0.00014475,2]
[354318440,1740408649682,-1659.16,0.00014492,2]
[354318442,1740408649691,-500.0,0.00014492,2]
[354318444,1740408649702,-508.82,0.0001452,2]
[354318446,1740408649712,-500.0,0.0001452,2]
[354318448,1740408649721,-500.0,0.0001452,2]
[354318450,1740408649731,-151.0,0.0001452,2]
[354318452,1740408649741,-647.81,0.0001452,2]